[Event "VIII Iberoamericano Mexico 2022"]
[Site "Mexico City"]
[Date "2022.02.13"]
[Round "2.38"]
[White "Munoz Ricardo, Wasdin Antonio"]
[Black "Davalos Prieto, Abel Justo"]
[Result "1-0"]
[ECO "B58"]
[WhiteElo "1745"]
[BlackElo "2103"]
[Annotator "ChessBase"]
[PlyCount "80"]
[EventDate "2022.02.12"]
[EventType "swiss"]
[EventCountry "MEX"]
[SourceTitle "playchess.com"]
[Source "ChessBase"]
[SourceQuality "1"]
[TimeControl "5400+30"]

1. e4 {[%emt 0:02:23]} c5 {[%emt 0:00:16]} 2. Nf3 {[%emt 0:01:01]} Nc6 {[%emt 0:00:11]} 3. d4 {[%emt 0:00:05]} cxd4 {[%emt 0:00:17]} 4. Nxd4 {[%emt 0:00:21]} Nf6 {[%emt 0:00:12]} 5. Nc3 {[%emt 0:00:44]} d6 {[%emt 0:00:09]} 6. Nxc6 {[%emt 0:06:11]} bxc6 {[%emt 0:00:09]} 7. Be2 {[%emt 0:02:05]} e5 {[%emt 0:01:52]} 8. O-O {[%emt 0:02:23]} Be7 {[%emt 0:01:35]} 9. f4 {[%emt 0:01:09]} Qb6+ {[%emt 0:05:41]} 10. Kh1 {[%emt 0:00:20]} O-O {[%emt 0:00:10]} 11. fxe5 {[%emt 0:03:37]} dxe5 {[%emt 0:00:15]} 12. Qe1 {[%emt 0:06:05]} Be6 {[%emt 0:04:54]} 13. Qg3 {[%emt 0:01:06]} Qc7 {[%emt 0:01:19]} 14. Bg5 {[%emt 0:13:25]} Kh8 {[%emt 0:00:23]} 15. Qh4 {[%emt 0:06:23]} Ng8 {[%emt 0:00:53]} 16. Rf3 {[%emt 0:03:06]} Bxg5 {[%emt 0:00:39]} 17. Qxg5 {[%emt 0:00:19]} f6 {[%emt 0:00:09]} 18. Qh4 {[%emt 0:00:53]} Rad8 {[%emt 0:05:31]} 19. Raf1 {[%emt 0:01:29]} Rd4 {[%emt 0:09:02]} 20. g4 {[%emt 0:05:59]} h6 {[%emt 0:07:22]} 21. Bd3 {[%emt 0:04:01]} Qd7 {[%emt 0:03:08]} 22. g5 {[%emt 0:03:11]} fxg5 {[%emt 0:01:23]} 23. Qg3 {[%emt 0:01:53]} Rf4 {[%emt 0:05:53]} 24. Ne2 {[%emt 0:01:33]} Rd6 {[%emt 0:00:09]} 25. Nxf4 {[%emt 0:03:58]} gxf4 {[%emt 0:00:25]} 26. Qe1 {[%emt 0:03:39]} Nf6 {[%emt 0:00:43]} 27. Qb4 {[%emt 0:08:09]} Qc7 {[%emt 0:10:51]} 28. Re1 {[%emt 0:07:55]} Bg4 {[%emt 0:04:52]} 29. Rff1 {[%emt 0:01:28]} Bh3 {[%emt 0:02:30]} 30. Rf3 {[%emt 0:02:16]} Bg4 {[%emt 0:00:17]} 31. Rff1 {[%emt 0:00:27]} c5 {[%emt 0:02:32]} 32. Qc3 {[%emt 0:02:35]} Rd4 {[%emt 0:00:42]} 33. b4 {[%emt 0:03:15]} Rxb4 {[%emt 0:00:56]} 34. Rb1 {[%emt 0:00:52]} Rxb1 {[%emt 0:01:20]} 35. Rxb1 {[%emt 0:00:02]} Bf3+ {[%emt 0:02:53]} 36. Kg1 {[%emt 0:00:03]} Qc8 {[%emt 0:10:00]} 37. Rb5 {[%emt 0:03:33]} Qg4+ {[%emt 0:03:39]} 38. Kf1 {[%emt 0:00:06]} Qg2+ {[%emt 0:01:30]} 39. Ke1 {[%emt 0:00:06]} Qg1+ {[%emt 0:02:47]} 40. Bf1 {[%emt 0:02:24]} Bxe4 {[%emt 0:13:01]} 1-0

[Event "VIII Iberoamericano Mexico 2022"]
[Site "Mexico City"]
[Date "2022.02.13"]
[Round "2.39"]
[White "Lopez Garcia, Miguel Angel"]
[Black "Arvizu Borchardt, David Ivan"]
[Result "1-0"]
[ECO "B30"]
[WhiteElo "1710"]
[BlackElo "1987"]
[Annotator "ChessBase"]
[PlyCount "115"]
[EventDate "2022.02.12"]
[EventType "swiss"]
[EventCountry "MEX"]
[SourceTitle "playchess.com"]
[Source "ChessBase"]
[SourceQuality "1"]
[TimeControl "5400+30"]

1. e4 {[%emt 0:00:02]} c5 {[%emt 0:09:02]} 2. Nf3 {[%emt 0:00:08]} Nc6 {[%emt 0:00:38]} 3. Nc3 {[%emt 0:00:20]} g6 {[%emt 0:00:16]} 4. Bc4 {[%emt 0:00:06]} Bg7 {[%emt 0:00:09]} 5. O-O {[%emt 0:00:07]} d6 {[%emt 0:00:10]} 6. Re1 {[%emt 0:06:08]} e6 {[%emt 0:00:20]} 7. d3 {[%emt 0:03:49]} Nge7 {[%emt 0:00:30]} 8. Bb3 {[%emt 0:02:08]} O-O {[%emt 0:01:15]} 9. Bf4 {[%emt 0:08:19]} Na5 {[%emt 0:08:38]} 10. Qd2 {[%emt 0:09:50]} Nxb3 {[%emt 0:06:08]} 11. axb3 {[%emt 0:00:08]} e5 {[%emt 0:05:49]} 12. Bh6 {[%emt 0:06:27]} f5 {[%emt 0:06:59]} 13. Bg5 {[%emt 0:03:19]} Be6 {[%emt 0:07:53]} 14. exf5 {[%emt 0:10:32]} Rxf5 {[%emt 0:02:21]} 15. Ne4 {[%emt 0:04:14]} Qd7 {[%emt 0:04:08]} 16. Ra4 {[%emt 0:10:54]} Nc6 {[%emt 0:06:55]} 17. Nh4 {[%emt 0:03:59]} Rf7 {[%emt 0:00:38]} 18. Bh6 {[%emt 0:02:44]} Raf8 {[%emt 0:01:45]} 19. Qg5 {[%emt 0:02:49]} b6 {[%emt 0:02:12]} 20. Bxg7 {[%emt 0:04:39]} Kxg7 {[%emt 0:00:20]} 21. Ng3 {[%emt 0:03:53]} Ne7 {[%emt 0:10:25]} 22. f3 {[%emt 0:06:01]} h6 {[%emt 0:01:21]} 23. Qe3 {[%emt 0:00:55]} b5 {[%emt 0:00:54]} 24. Ra6 {[%emt 0:02:11]} Rf4 {[%emt 0:02:38]} 25. Ne4 {[%emt 0:01:01]} Rxh4 {[%emt 0:00:02]} 26. Rxd6 {[%emt 0:00:44]} Rxe4 {[%emt 0:00:15]} 27. Rxd7 {[%emt 0:00:11]} Rxe3 {[%emt 0:00:11]} 28. Rxe7+ {[%emt 0:00:07]} Kf6 {[%emt 0:00:26]} 29. Rxe6+ {[%emt 0:00:05]} Kxe6 {[%emt 0:00:11]} 30. Rxe3 {[%emt 0:00:05]} Kd5 {[%emt 0:03:57]} 31. Kf2 {[%emt 0:01:13]} Rf6 {[%emt 0:01:09]} 32. Ke2 {[%emt 0:01:35]} Ra6 {[%emt 0:00:39]} 33. c4+ {[%emt 0:00:31]} Kd6 {[%emt 0:01:06]} 34. Kd2 {[%emt 0:00:43]} Ra2 {[%emt 0:04:05]} 35. Kc2 {[%emt 0:00:05]} Ra1 {[%emt 0:00:46]} 36. cxb5 {[%emt 0:00:26]} Ra5 {[%emt 0:01:00]} 37. Re4 {[%emt 0:00:32]} Rxb5 {[%emt 0:00:45]} 38. Ra4 {[%emt 0:00:11]} a5 {[%emt 0:01:44]} 39. Rg4 {[%emt 0:00:07]} g5 {[%emt 0:01:10]} 40. h4 {[%emt 0:00:07]} Rb4 {[%emt 0:00:56]} 41. Rxb4 {[%emt 0:02:17]} axb4 {[%emt 0:00:08]} 42. hxg5 {[%emt 0:00:18]} hxg5 {[%emt 0:00:03]} 43. Kd2 {[%emt 0:00:10]} Ke6 {[%emt 0:00:46]} 44. Ke3 {[%emt 0:00:08]} Kf5 {[%emt 0:04:47]} 45. g3 {[%emt 0:00:13]} Kf6 {[%emt 0:02:51]} 46. Ke4 {[%emt 0:00:09]} Ke6 {[%emt 0:00:11]} 47. g4 {[%emt 0:00:05]} Kd6 {[%emt 0:00:08]} 48. Kf5 {[%emt 0:00:09]} Kd5 {[%emt 0:00:02]} 49. Kxg5 {[%emt 0:00:10]} Kd4 {[%emt 0:00:01]} 50. Kf5 {[%emt 0:00:10]} Kxd3 {[%emt 0:00:06]} 51. g5 {[%emt 0:00:06]} Kc2 {[%emt 0:00:13]} 52. g6 {[%emt 0:00:07]} Kxb3 {[%emt 0:00:06]} 53. g7 {[%emt 0:00:07]} Kxb2 {[%emt 0:00:05]} 54. g8=Q {[%emt 0:00:07]} Kc3 {[%emt 0:00:38]} 55. Qd5 {[%emt 0:00:33]} c4 {[%emt 0:00:11]} 56. Kxe5 {[%emt 0:00:14]} b3 {[%emt 0:01:27]} 57. Qd4+ {[%emt 0:00:06]} Kb4 {[%emt 0:00:41]} 58. Kd5 {[%emt 0:00:06]} 1-0

[Event "VIII Iberoamericano Mexico 2022"]
[Site "Mexico City"]
[Date "2022.02.13"]
[Round "2.40"]
[White "Macias Zamora, Jose Armando"]
[Black "Paredes Guzman, Francisco Javier"]
[Result "0-1"]
[ECO "B90"]
[WhiteElo "1488"]
[BlackElo "1891"]
[Annotator "NA"]
[PlyCount "66"]
[EventDate "2022.02.12"]
[EventType "swiss"]
[EventCountry "MEX"]
[SourceTitle "playchess.com"]
[Source "ChessBase"]
[SourceQuality "1"]
[TimeControl "5400+30"]

1. e4 {[%emt 0:00:02]} c5 {[%emt 0:00:07]} 2. Nf3 {[%emt 0:00:04]} d6 {[%emt 0:00:05]} 3. d4 {[%emt 0:00:05]} cxd4 {[%emt 0:00:04]} 4. Nxd4 {[%emt 0:00:05]} Nf6 {[%emt 0:00:04]} 5. Nc3 {[%emt 0:00:05]} a6 {[%emt 0:00:02]} 6. Rg1 {[%emt 0:00:05]} e5 {[%emt 0:01:30]} 7. Nb3 {[%emt 0:00:06]} Be6 {[%emt 0:02:11]} 8. g4 {[%emt 0:00:08]} d5 {[%emt 0:02:28]} 9. exd5 {[%emt 0:02:30]} Nxd5 {[%emt 0:00:08]} 10. Nxd5 {[%emt 0:00:12]} Qxd5 {[%emt 0:00:18]} 11. Qxd5 {[%emt 0:00:09]} Bxd5 {[%emt 0:00:04]} 12. Be3 {[%emt 0:00:16]} Nc6 {[%emt 0:14:06]} 13. O-O-O {[%emt 0:04:15]} Nb4 {[%emt 0:25:40]} 14. Kb1 {[%emt 0:40:58]} Be4 {[%emt 0:01:30]} 15. Bd3 {[%emt 0:00:12]} Nxd3 {[%emt 0:00:04]} 16. cxd3 {[%emt 0:00:08]} Bf3 {[%emt 0:04:14]} 17. Rc1 {[%emt 0:04:01]} Bd6 {[%emt 0:07:24]} 18. h3 {[%emt 0:07:58]} O-O {[%emt 0:09:21]} 19. d4 {[%emt 0:01:32]} Rfd8 {[%emt 0:01:25]} 20. Nd2 {[%emt 0:05:10]} Bd5 {[%emt 0:04:32]} 21. Nc4 {[%emt 0:04:05]} exd4 {[%emt 0:01:59]} 22. Bxd4 {[%emt 0:00:16]} Bh2 {[%emt 0:05:28]} 23. Rgd1 {[%emt 0:02:30]} Bxc4 {[%emt 0:03:36]} 24. Rxc4 {[%emt 0:11:03]} Be5 {[%emt 0:00:06]} 25. a4 {[%emt 0:01:19]} b5 {[%emt 0:00:06]} 26. axb5 {[%emt 0:00:48]} axb5 {[%emt 0:00:03]} 27. Rb4 {[%emt 0:00:30]} Ra4 {[%emt 0:00:06]} 28. Rxa4 {[%emt 0:00:29]} bxa4 {[%emt 0:00:05]} 29. Bxe5 {[%emt 0:00:17]} Rxd1+ {[%emt 0:00:04]} 30. Ka2 {[%emt 0:00:15]} f6 {[%emt 0:00:26]} 31. Bg3 {[%emt 0:00:20]} Rd3 {[%emt 0:00:07]} 32. Kb1 {[%emt 0:02:07]} Kf7 {[%emt 0:00:06]} 33. Kc2 {[%emt 0:00:09]} Rb3 {[%emt 0:00:06]} 0-1

[Event "VIII Iberoamericano Mexico 2022"]
[Site "Mexico City"]
[Date "2022.02.13"]
[Round "2.42"]
[White "Hernandez Jimenez, Alexander Andres"]
[Black "Rolandi Rodriguez, Dario"]
[Result "1/2-1/2"]
[ECO "C54"]
[WhiteElo "2167"]
[BlackElo "1356"]
[Annotator "ChessBase"]
[PlyCount "67"]
[EventDate "2022.02.12"]
[EventType "swiss"]
[EventCountry "MEX"]
[SourceTitle "playchess.com"]
[Source "ChessBase"]
[SourceQuality "1"]
[TimeControl "5400+30"]

1. e4 {[%emt 0:00:03]} e5 {[%emt 0:00:07]} 2. Nf3 {[%emt 0:00:10]} Nc6 {[%emt 0:00:06]} 3. Bc4 {[%emt 0:00:23]} Bc5 {[%emt 0:00:15]} 4. c3 {[%emt 0:01:47]} Nf6 {[%emt 0:00:42]} 5. d3 {[%emt 0:00:08]} d6 {[%emt 0:00:13]} 6. O-O {[%emt 0:01:31]} a6 {[%emt 0:00:38]} 7. d4 {[%emt 0:05:19]} Ba7 {[%emt 0:01:59]} 8. dxe5 {[%emt 0:00:31]} Nxe5 {[%emt 0:00:42]} 9. Nxe5 {[%emt 0:00:11]} dxe5 {[%emt 0:00:03]} 10. Qxd8+ {[%emt 0:36:24]} Kxd8 {[%emt 0:00:14]} 11. Nd2 {[%emt 0:04:47]} Ke7 {[%emt 0:04:08]} 12. b3 {[%emt 0:12:23]} b5 {[%emt 0:04:10]} 13. Be2 {[%emt 0:05:38]} Bb7 {[%emt 0:01:03]} 14. a4 {[%emt 0:06:09]} Bc6 {[%emt 0:12:15]} 15. Nf3 {[%emt 0:01:56]} Nd7 {[%emt 0:05:37]} 16. Ba3+ {[%emt 0:01:18]} Kf6 {[%emt 0:02:49]} 17. axb5 {[%emt 0:02:16]} axb5 {[%emt 0:03:48]} 18. c4 {[%emt 0:04:18]} bxc4 {[%emt 0:01:41]} 19. Bxc4 {[%emt 0:00:02]} Bxe4 {[%emt 0:03:37]} 20. Rad1 {[%emt 0:03:24]} Rhd8 {[%emt 0:06:57]} 21. Bb2 {[%emt 0:00:03]} Bxf3 {[%emt 0:04:59]} 22. gxf3 {[%emt 0:00:02]} Bc5 {[%emt 0:05:12]} 23. f4 {[%emt 0:01:26]} Bd4 {[%emt 0:11:52]} 24. Bxd4 {[%emt 0:00:58]} exd4 {[%emt 0:00:15]} 25. Rxd4 {[%emt 0:00:02]} Nb6 {[%emt 0:00:46]} 26. Rfd1 {[%emt 0:01:09]} Rxd4 {[%emt 0:05:24]} 27. Rxd4 {[%emt 0:00:02]} Nxc4 {[%emt 0:00:26]} 28. Rxc4 {[%emt 0:00:03]} Ra7 {[%emt 0:00:34]} 29. Kg2 {[%emt 0:00:27]} Rb7 {[%emt 0:01:21]} 30. b4 {[%emt 0:03:12]} Ke6 {[%emt 0:03:17]} 31. Rc6+ {[%emt 0:06:03]} Kd7 {[%emt 0:20:50]} 32. Rc4 {[%emt 0:04:25]} Kd6 {[%emt 0:00:30]} 33. Kf3 {[%emt 0:00:30]} c6 34. Ke4 {[%emt 0:00:00]} 1/2-1/2

[Event "VIII Iberoamericano Mexico 2022"]
[Site "Mexico City"]
[Date "2022.02.13"]
[Round "2.45"]
[White "Hernandez Diaz, Paula Sofia"]
[Black "Solorzano, Andres"]
[Result "1-0"]
[ECO "B07"]
[WhiteElo "1762"]
[BlackElo "2049"]
[Annotator "ChessBase"]
[PlyCount "80"]
[EventDate "2022.02.12"]
[EventType "swiss"]
[EventCountry "MEX"]
[SourceTitle "playchess.com"]
[Source "ChessBase"]
[SourceQuality "1"]
[TimeControl "5400+30"]

1. e4 {[%emt 0:00:04]} d6 {[%emt 0:02:28]} 2. d4 {[%emt 0:00:20]} Nf6 {[%emt 0:00:04]} 3. Nc3 {[%emt 0:00:30]} g6 {[%emt 0:00:11]} 4. Be3 {[%emt 0:01:01]} Bg7 {[%emt 0:00:08]} 5. Qd2 Nbd7 {[%emt 0:01:15]} 6. Nf3 {[%emt 0:01:24]} Ng4 {[%emt 0:03:04]} 7. Bg5 {[%emt 0:02:38]} h6 {[%emt 0:00:10]} 8. Bh4 {[%emt 0:00:31]} O-O {[%emt 0:02:23]} 9. h3 {[%emt 0:08:38]} Ngf6 {[%emt 0:00:14]} 10. O-O-O {[%emt 0:08:17]} c5 {[%emt 0:13:36]} 11. dxc5 {[%emt 0:10:01]} Nxc5 {[%emt 0:09:26]} 12. e5 {[%emt 0:08:29]} Ne8 {[%emt 0:02:37]} 13. Bc4 {[%emt 0:15:27]} g5 {[%emt 0:11:38]} 14. Bg3 {[%emt 0:12:47]} Be6 {[%emt 0:21:48]} 15. Bxe6 {[%emt 0:08:44]} Nxe6 {[%emt 0:00:31]} 16. exd6 {[%emt 0:04:05]} Nxd6 {[%emt 0:00:10]} 17. Be5 {[%emt 0:08:08]} Qa5 {[%emt 0:16:45]} 18. Bxg7 {[%emt 0:04:12]} Kxg7 {[%emt 0:00:28]} 19. Nd4 {[%emt 0:00:45]} Nf4 {[%emt 0:03:50]} 20. Nb3 {[%emt 0:01:08]} Qf5 {[%emt 0:01:55]} 21. f3 {[%emt 0:01:34]} b5 {[%emt 0:03:47]} 22. Qd4+ {[%emt 0:01:27]} Kg8 {[%emt 0:00:46]} 23. h4 {[%emt 0:00:41]} Rfc8 {[%emt 0:02:12]} 24. Kb1 {[%emt 0:01:03]} Rc4 {[%emt 0:00:47]} 25. Qf2 {[%emt 0:00:11]} b4 {[%emt 0:00:40]} 26. g4 {[%emt 0:00:28]} Qg6 {[%emt 0:00:36]} 27. Nd5 {[%emt 0:00:32]} Nxd5 {[%emt 0:00:27]} 28. Rxd5 {[%emt 0:00:06]} Rac8 {[%emt 0:00:14]} 29. Rd2 {[%emt 0:00:10]} f6 {[%emt 0:01:22]} 30. Qe2 {[%emt 0:00:41]} R8c7 {[%emt 0:00:26]} 31. hxg5 {[%emt 0:00:44]} fxg5 {[%emt 0:00:25]} 32. Qh2 {[%emt 0:00:36]} Kg7 {[%emt 0:00:29]} 33. Qe5+ {[%emt 0:00:29]} Kg8 {[%emt 0:00:47]} 34. Rhh2 {[%emt 0:00:49]} Rf4 {[%emt 0:01:02]} 35. Qd5+ {[%emt 0:00:33]} Kg7 {[%emt 0:00:34]} 36. Nd4 {[%emt 0:00:27]} Rf6 {[%emt 0:00:32]} 37. Rde2 {[%emt 0:00:38]} Rc4 {[%emt 0:00:39]} 38. Rxe7+ {[%emt 0:00:35]} Kf8 {[%emt 0:00:29]} 39. Ree2 {[%emt 0:00:22]} Qf7 {[%emt 0:00:31]} 40. Ne6+ {[%emt 0:00:39]} Rxe6 {[%emt 0:01:04]} 1-0

[Event "VIII Iberoamericano Mexico 2022"]
[Site "Mexico City"]
[Date "2022.02.14"]
[Round "3.46"]
[White "Avila Bautista, Roberto Alejandro"]
[Black "Hernandez Diaz, Paula Sofia"]
[Result "1-0"]
[ECO "A05"]
[WhiteElo "2090"]
[BlackElo "1762"]
[Annotator "NA"]
[PlyCount "74"]
[EventDate "2022.02.12"]
[EventType "swiss"]
[EventCountry "MEX"]
[SourceTitle "playchess.com"]
[Source "ChessBase"]
[SourceQuality "1"]
[TimeControl "5400+30"]

1. Nf3 {[%emt 0:00:06]} c5 {[%emt 0:00:22]} 2. b3 {[%emt 0:00:08]} Nc6 {[%emt 0:01:16]} 3. Bb2 {[%emt 0:00:24]} d5 {[%emt 0:00:50]} 4. g3 {[%emt 0:00:08]} Nf6 {[%emt 0:00:17]} 5. Bg2 {[%emt 0:00:09]} g6 {[%emt 0:00:28]} 6. O-O {[%emt 0:00:24]} Bg7 {[%emt 0:00:12]} 7. d4 {[%emt 0:02:13]} cxd4 {[%emt 0:01:20]} 8. Nxd4 {[%emt 0:00:09]} O-O {[%emt 0:00:16]} 9. Nd2 {[%emt 0:03:29]} Re8 {[%emt 0:03:37]} 10. N2f3 {[%emt 0:00:27]} Bd7 {[%emt 0:08:30]} 11. Rc1 {[%emt 0:00:37]} Rc8 {[%emt 0:07:01]} 12. Nxc6 {[%emt 0:02:56]} bxc6 {[%emt 0:02:38]} 13. c4 {[%emt 0:00:39]} Be6 {[%emt 0:07:26]} 14. Ng5 {[%emt 0:17:49]} Bf5 {[%emt 0:08:21]} 15. Nf3 {[%emt 0:18:33]} Be4 {[%emt 0:08:45]} 16. Qd2 {[%emt 0:01:52]} Qb6 {[%emt 0:05:08]} 17. cxd5 {[%emt 0:02:24]} cxd5 {[%emt 0:01:29]} 18. Bd4 {[%emt 0:01:16]} Qa6 {[%emt 0:01:40]} 19. Qb2 {[%emt 0:00:47]} Nh5 {[%emt 0:10:01]} 20. Bxg7 {[%emt 0:46:00]} Nxg7 {[%emt 0:00:14]} 21. Ne5 {[%emt 0:00:00]} Bxg2 {[%emt 0:02:04]} 22. Kxg2 {[%emt 0:00:00]} Rxc1 {[%emt 0:00:56]} 23. Rxc1 {[%emt 0:00:00]} Rc8 {[%emt 0:00:54]} 24. Rxc8+ {[%emt 0:00:00]} Qxc8 {[%emt 0:00:46]} 25. Qd4 {[%emt 0:00:00]} Qb7 {[%emt 0:00:48]} 26. Ng4 {[%emt 0:00:00]} Nf5 {[%emt 0:04:32]} 27. Qa4 {[%emt 0:00:00]} f6 {[%emt 0:07:17]} 28. Qf4 {[%emt 0:00:00]} Kg7 {[%emt 0:02:15]} 29. Kg1 {[%emt 0:00:00]} Qa6 {[%emt 0:09:08]} 30. Qd2 {[%emt 0:00:00]} Qc6 {[%emt 0:01:21]} 31. Ne3 {[%emt 0:00:00]} Nxe3 {[%emt 0:00:34]} 32. Qxe3 {[%emt 0:00:00]} Qb7 {[%emt 0:00:12]} 33. Qc5 {[%emt 0:00:00]} Kf7 {[%emt 0:01:16]} 34. b4 {[%emt 0:00:00]} Ke6 {[%emt 0:01:13]} 35. a4 {[%emt 0:00:00]} Qb6 {[%emt 0:02:59]} 36. Qc8+ {[%emt 0:00:00]} Kd6 {[%emt 0:00:24]} 37. Qc3 {[%emt 0:00:00]} Qc6 {[%emt 0:02:30]} 1-0

[Event "VIII Iberoamericano Mexico 2022"]
[Site "Mexico City"]
[Date "2022.02.14"]
[Round "3.48"]
[White "Jimenez Cunjama, Francisco Daniel"]
[Black "Ortiz Verdezoto, Anahi"]
[Result "0-1"]
[ECO "A47"]
[WhiteElo "1674"]
[BlackElo "2047"]
[Annotator "NA"]
[PlyCount "66"]
[EventDate "2022.02.12"]
[EventType "swiss"]
[EventCountry "MEX"]
[SourceTitle "playchess.com"]
[Source "ChessBase"]
[SourceQuality "1"]
[TimeControl "5400+30"]

1. d4 {[%emt 0:00:13]} Nf6 {[%emt 0:00:07]} 2. Nf3 {[%emt 0:00:10]} e6 {[%emt 0:00:11]} 3. Bf4 {[%emt 0:00:24]} b6 {[%emt 0:01:15]} 4. e3 {[%emt 0:01:46]} Bb7 {[%emt 0:00:28]} 5. Be2 {[%emt 0:00:15]} Be7 {[%emt 0:00:09]} 6. O-O {[%emt 0:00:12]} d6 {[%emt 0:00:18]} 7. c4 {[%emt 0:01:05]} c5 {[%emt 0:01:45]} 8. Nc3 {[%emt 0:01:46]} cxd4 {[%emt 0:01:20]} 9. exd4 {[%emt 0:00:43]} O-O {[%emt 0:00:49]} 10. Qc2 {[%emt 0:03:05]} a6 {[%emt 0:05:32]} 11. Rad1 {[%emt 0:03:12]} Nbd7 {[%emt 0:00:36]} 12. b3 {[%emt 0:02:49]} Rc8 {[%emt 0:00:39]} 13. Qd2 {[%emt 0:04:42]} d5 {[%emt 0:16:18]} 14. Qb2 {[%emt 0:10:18]} Bb4 {[%emt 0:07:13]} 15. Nb1 {[%emt 0:06:26]} Qe7 {[%emt 0:03:54]} 16. a3 {[%emt 0:01:35]} Bd6 {[%emt 0:00:02]} 17. Ne5 {[%emt 0:01:18]} Rfd8 18. Rfe1 {[%emt 0:04:49]} Nf8 {[%emt 0:10:35]} 19. Bg5 {[%emt 0:16:08]} h6 {[%emt 0:00:03]} 20. Bh4 {[%emt 0:00:18]} a5 {[%emt 0:07:57]} 21. cxd5 {[%emt 0:03:13]} Bxd5 {[%emt 0:00:03]} 22. Bc4 {[%emt 0:00:29]} g5 {[%emt 0:00:14]} 23. Bg3 {[%emt 0:02:31]} b5 {[%emt 0:02:21]} 24. Bxb5 {[%emt 0:01:57]} Qb7 {[%emt 0:02:13]} 25. Qe2 {[%emt 0:10:24]} Bxb3 {[%emt 0:06:55]} 26. Rd2 {[%emt 0:06:01]} Qd5 {[%emt 0:00:56]} 27. h4 {[%emt 0:02:24]} N8h7 {[%emt 0:01:16]} 28. f4 {[%emt 0:04:28]} g4 {[%emt 0:07:34]} 29. Nxg4 {[%emt 0:01:15]} Nxg4 30. Qxg4+ {[%emt 0:00:56]} Kh8 {[%emt 0:02:34]} 31. Qe2 {[%emt 0:04:21]} Rg8 {[%emt 0:00:37]} 32. Kh2 {[%emt 0:03:33]} Nf6 {[%emt 0:05:12]} 33. Bd3 {[%emt 0:00:48]} Nh5 {[%emt 0:17:54]} 0-1

[Event "VIII Iberoamericano Mexico 2022"]
[Site "Mexico City"]
[Date "2022.02.14"]
[Round "3.49"]
[White "Diaz Osorio, Ana Carolina"]
[Black "Zarate Manjarrez, Alfredo"]
[Result "0-1"]
[ECO "A43"]
[WhiteElo "1627"]
[BlackElo "2026"]
[Annotator "NA"]
[PlyCount "70"]
[EventDate "2022.02.12"]
[EventType "swiss"]
[EventCountry "MEX"]
[SourceTitle "playchess.com"]
[Source "ChessBase"]
[SourceQuality "1"]
[TimeControl "5400+30"]

1. d4 {[%emt 0:04:04]} c5 {[%emt 0:02:11]} 2. d5 {[%emt 0:00:12]} d6 {[%emt 0:00:36]} 3. e4 {[%emt 0:01:47]} g6 {[%emt 0:00:38]} 4. Bb5+ {[%emt 0:01:16]} Nd7 {[%emt 0:01:17]} 5. Nc3 {[%emt 0:01:36]} Bg7 {[%emt 0:00:17]} 6. Bd2 {[%emt 0:00:10]} a6 {[%emt 0:00:48]} 7. Be2 {[%emt 0:02:12]} b5 {[%emt 0:01:50]} 8. f4 {[%emt 0:07:52]} Nb6 {[%emt 0:02:32]} 9. a3 {[%emt 0:03:42]} e6 {[%emt 0:04:32]} 10. Nf3 {[%emt 0:06:34]} exd5 {[%emt 0:02:06]} 11. exd5 {[%emt 0:02:17]} Nf6 {[%emt 0:01:08]} 12. O-O {[%emt 0:00:57]} O-O {[%emt 0:00:06]} 13. Rb1 {[%emt 0:07:22]} Re8 {[%emt 0:02:58]} 14. Ng5 {[%emt 0:24:25]} b4 {[%emt 0:18:40]} 15. axb4 {[%emt 0:00:57]} cxb4 {[%emt 0:00:01]} 16. Na2 {[%emt 0:02:47]} a5 {[%emt 0:00:12]} 17. c3 {[%emt 0:03:27]} Bf5 {[%emt 0:00:35]} 18. Rc1 {[%emt 0:00:50]} Nbxd5 {[%emt 0:03:51]} 19. cxb4 {[%emt 0:00:21]} Qb6+ {[%emt 0:00:17]} 20. Kh1 {[%emt 0:00:22]} axb4 {[%emt 0:00:07]} 21. Bc4 {[%emt 0:01:17]} h6 {[%emt 0:02:24]} 22. Qb3 {[%emt 0:07:37]} hxg5 {[%emt 0:10:59]} 23. fxg5 {[%emt 0:12:49]} Ne4 {[%emt 0:00:05]} 24. Bxd5 {[%emt 0:00:12]} Nxd2 {[%emt 0:04:44]} 25. Bxf7+ {[%emt 0:00:08]} Kf8 {[%emt 0:00:37]} 26. Qd5 {[%emt 0:02:49]} Nxf1 {[%emt 0:04:18]} 27. Rxf1 {[%emt 0:00:25]} Ra5 {[%emt 0:01:57]} 28. Qb3 {[%emt 0:01:35]} Re3 {[%emt 0:02:12]} 29. Qc4 {[%emt 0:00:27]} Rc5 {[%emt 0:01:25]} 30. Qf4 {[%emt 0:02:41]} Re4 {[%emt 0:00:22]} 31. Qf3 {[%emt 0:00:05]} Ke7 {[%emt 0:01:44]} 32. Qb3 {[%emt 0:01:21]} Qb5 {[%emt 0:03:48]} 33. Rd1 {[%emt 0:01:27]} Qe2 {[%emt 0:01:14]} 34. Rg1 {[%emt 0:00:10]} Qxb2 {[%emt 0:00:44]} 35. Qa4 {[%emt 0:00:33]} Kxf7 {[%emt 0:00:18]} 0-1